bitfinex/quotes_BTCUSD_20241010
["timestamp","ask_amount","ask_price","bid_price","bid_amount"]
[1728527801788,0.39448599,60921.0,60920.0,0.003634]
[1728527802044,0.44358245,60921.0,60920.0,0.003634]
[1728527802269,0.39448599,60921.0,60920.0,0.003634]
[1728527802733,0.67384787,60921.0,60920.0,0.003634]
[1728527804378,0.69836802,60921.0,60920.0,0.003634]
[1728527805348,0.57576725,60921.0,60920.0,0.003634]
[1728527806287,0.57776725,60921.0,60920.0,0.003634]
[1728527806503,0.57576725,60921.0,60920.0,0.003634]
[1728527807639,0.57776725,60921.0,60920.0,0.003634]
[1728527807873,0.68121095,60921.0,60920.0,0.003634]
[1728527808626,0.80041095,60921.0,60920.0,0.003634]
[1728527808863,0.88231095,60921.0,60920.0,0.003634]
[1728527809552,1.13686499,60921.0,60920.0,0.003634]
[1728527809988,0.70102969,60921.0,60920.0,0.003634]
[1728527810994,1.04878346,60921.0,60920.0,0.003634]
[1728527811992,0.88269211,60921.0,60920.0,0.003634]
[1728527812425,0.88069211,60921.0,60920.0,0.003634]
[1728527816726,0.77724841,60921.0,60920.0,0.003634]
[1728527816935,0.59914841,60921.0,60920.0,0.003634]
[1728527820933,0.57614841,60921.0,60920.0,0.003634]
[1728527821371,0.72386751,60921.0,60920.0,0.003634]
[1728527822028,0.72397034,60921.0,60920.0,0.003634]
[1728527824203,0.86202297,60921.0,60920.0,0.003634]
[1728527824430,0.73730319,60921.0,60920.0,0.003634]
[1728527824648,0.91450319,60921.0,60920.0,0.003634]
[1728527825774,0.91250319,60921.0,60920.0,0.003634]
[1728527825992,1.07869044,60921.0,60920.0,0.003634]
[1728527826226,0.77445056,60921.0,60920.0,0.003634]
[1728527826445,0.69475056,60921.0,60920.0,0.003634]
[1728527826660,0.69474571,60921.0,60920.0,0.003634]
[1728527830526,0.69674571,60921.0,60920.0,0.003634]
[1728527830774,0.69474571,60921.0,60920.0,0.003634]
[1728527831257,0.51298599,60921.0,60920.0,0.003634]
[1728527831471,0.69474609,60921.0,60920.0,0.003634]
[1728527831950,0.69674609,60921.0,60920.0,0.003634]
[1728527832877,0.69474609,60921.0,60920.0,0.003634]
[1728527834061,0.7852067,60921.0,60920.0,0.003634]
[1728527834780,0.95338736,60921.0,60920.0,0.003634]
[1728527835024,0.7872067,60921.0,60920.0,0.003634]
[1728527835758,0.95338736,60921.0,60920.0,0.003634]
[1728527836769,0.7852067,60921.0,60920.0,0.003634]
[1728527837270,0.7872067,60921.0,60920.0,0.003634]
[1728527837984,0.95338736,60921.0,60920.0,0.003634]
[1728527838913,0.7872067,60921.0,60920.0,0.003634]
[1728527839152,0.7852067,60921.0,60920.0,0.003634]
[1728527839384,0.59924609,60921.0,60920.0,0.003634]
[1728527840106,0.60124609,60921.0,60920.0,0.003634]
[1728527840869,0.60125564,60921.0,60920.0,0.003634]
[1728527841596,0.76744504,60921.0,60920.0,0.003634]
[1728527841848,0.60125564,60921.0,60920.0,0.003634]
[1728527842073,0.76745794,60921.0,60920.0,0.003634]
[1728527842319,0.92826455,60921.0,60920.0,0.003634]
[1728527842562,0.92626455,60921.0,60920.0,0.003634]
[1728527843808,0.76006225,60921.0,60920.0,0.003634]
[1728527844044,0.9282802,60921.0,60920.0,0.003634]
[1728527844498,0.76206225,60921.0,60920.0,0.003634]
[1728527844979,0.92828684,60921.0,60920.0,0.003634]
[1728527845204,0.76206225,60921.0,60920.0,0.003634]
[1728527845454,0.92828762,60921.0,60920.0,0.003634]
[1728527845683,0.76206225,60921.0,60920.0,0.003634]
[1728527846348,0.60125564,60921.0,60920.0,0.003634]
[1728527846629,0.76548691,60921.0,60920.0,0.003634]
[1728527846883,0.57625564,60921.0,60920.0,0.003634]
[1728527849979,0.41210864,60921.0,60920.0,0.003634]
[1728527850515,0.57625564,60921.0,60920.0,0.003634]
[1728527854871,0.57620453,60921.0,60920.0,0.003634]
[1728527859784,0.57618798,60921.0,60920.0,0.003634]
[1728527864373,0.57619835,60921.0,60920.0,0.003634]
[1728527868423,0.59919835,60921.0,60920.0,0.003634]
[1728527868880,0.7468757,60921.0,60920.0,0.003634]
[1728527871621,0.59919835,60921.0,60920.0,0.003634]
[1728527873980,0.59921678,60921.0,60920.0,0.003634]
[1728527878167,0.69541678,60921.0,60920.0,0.003634]
[1728527878394,0.77451678,60921.0,60920.0,0.003634]
[1728527878631,0.94067065,60921.0,60920.0,0.003634]
[1728527880309,0.77451678,60921.0,60920.0,0.003634]
[1728527880560,0.93870654,60921.0,60920.0,0.003634]
[1728527881022,0.85960654,60921.0,60920.0,0.003634]
[1728527881946,0.85963851,60921.0,60920.0,0.003634]
[1728527882170,0.76543851,60921.0,60920.0,0.003634]
[1728527882399,0.59925223,60921.0,60920.0,0.003634]
[1728527882651,0.57625223,60921.0,60920.0,0.003634]
[1728527882963,0.41210523,60921.0,60920.0,0.003634]
[1728527883219,0.41210523,60921.0,60920.0,0.249983]
[1728527883220,0.37434864,60921.0,60920.0,0.249983]
[1728527883886,0.37434864,60921.0,60920.0,0.449883]
[1728527883887,0.01828376,60921.0,60920.0,0.449883]
[1728527884105,0.01028376,60921.0,60920.0,0.448883]
[1728527884556,0.04922511,60923.0,60920.0,0.29905797]
[1728527884789,0.04922511,60923.0,60922.0,0.38658914]
[1728527885026,0.04922511,60923.0,60922.0,0.46298914]
[1728527885304,0.04922511,60925.0,60922.0,0.31416714]
[1728527885539,0.04922511,60925.0,60924.0,0.164138]
[1728527886230,0.04922511,60926.0,60922.0,0.62713214]
[1728527886450,0.002,60923.0,60922.0,0.79127614]
[1728527887620,0.04919938,60926.0,60924.0,0.164137]
[1728527887889,0.004,60925.0,60924.0,0.164137]
[1728527888333,0.04919938,60927.0,60924.0,0.164137]
[1728527889488,0.003,60926.0,60925.0,0.164136]
[1728527889716,0.05319938,60927.0,60925.0,0.164136]
[1728527889951,0.05619938,60927.0,60925.0,0.164136]
[1728527890419,0.05619938,60927.0,60922.0,0.504687]
[1728527890649,0.164134,60926.0,60922.0,0.240543]
[1728527890870,0.164134,60926.0,60922.0,0.0764]
[1728527891090,0.05319938,60927.0,60923.0,0.164141]
[1728527891332,0.005,60926.0,60923.0,0.164141]
[1728527891567,0.005,60926.0,60924.0,0.164138]
[1728527891839,0.05319938,60927.0,60924.0,0.164138]
[1728527892093,0.16083764,60926.0,60923.0,0.164141]
[1728527892314,0.16283764,60926.0,60923.0,0.164141]
[1728527892746,0.16083764,60926.0,60923.0,0.164141]
[1728527893213,0.16083764,60926.0,60923.0,0.328282]
[1728527893450,0.16083764,60926.0,60924.0,0.164137]
[1728527893671,0.16283764,60926.0,60924.0,0.164137]
[1728527894327,0.00510071,60925.0,60924.0,0.164137]
[1728527894546,0.16593835,60925.0,60924.0,0.164137]
[1728527896146,0.16593835,60925.0,60922.0,0.404683]
[1728527896147,0.16993835,60925.0,60923.0,0.16414]
[1728527896439,0.32497664,60924.0,60922.0,0.0764]
[1728527896667,0.32497764,60924.0,60922.0,0.0764]
[1728527896911,0.00520401,60923.0,60922.0,0.0764]
[1728527897187,0.16604165,60923.0,60920.0,0.001634]
[1728527897429,0.16083764,60922.0,60920.0,0.001634]
[1728527897668,0.164147,60921.0,60920.0,0.001634]
[1728527897922,0.44742978,60921.0,60920.0,0.001634]
[1728527898161,0.45263379,60921.0,60920.0,0.001634]
[1728527898630,0.33018865,60921.0,60920.0,0.001634]
[1728527899663,0.33018865,60921.0,60920.0,0.003634]
[1728527899893,0.33018865,60921.0,60920.0,0.001634]
[1728527900132,0.33018865,60921.0,60920.0,0.003634]
[1728527900569,0.33018865,60921.0,60920.0,0.001634]
[1728527900833,0.33818865,60921.0,60920.0,0.002634]
[1728527901072,0.33018865,60921.0,60920.0,0.001634]
[1728527901823,0.33518865,60921.0,60920.0,0.002634]
[1728527902330,0.33018865,60921.0,60920.0,0.001634]
[1728527902583,0.41893486,60921.0,60920.0,0.003634]
[1728527904580,0.25478786,60921.0,60920.0,0.003634]
[1728527904834,0.23020384,60921.0,60920.0,0.003634]
[1728527905088,0.39435084,60921.0,60920.0,0.003634]
[1728527905570,0.38935084,60921.0,60920.0,0.002634]
[1728527905806,0.33518865,60921.0,60920.0,0.002634]
[1728527906048,0.38835084,60921.0,60920.0,0.002634]
[1728527906291,0.37935084,60921.0,60920.0,0.001634]
[1728527906546,0.21820384,60921.0,60920.0,0.38682814]
[1728527907051,0.16904165,60921.0,60920.0,0.38682814]
[1728527907306,0.16904165,60921.0,60920.0,0.22267914]
[1728527907552,0.16904165,60921.0,60920.0,0.264383]
[1728527908050,0.17304165,60921.0,60920.0,0.264383]
[1728527908534,0.17304165,60921.0,60920.0,0.100234]
[1728527908784,0.17304165,60921.0,60920.0,0.28709939]
[1728527913364,0.17304165,60921.0,60920.0,0.18849939]
[1728527916418,0.22220461,60921.0,60920.0,0.18849939]
[1728527917140,0.22220461,60921.0,60920.0,0.02435039]
[1728527917379,0.22220461,60921.0,60920.0,0.18849939]
[1728527917619,0.22220461,60921.0,60920.0,0.02435039]
[1728527917855,0.22220461,60921.0,60920.0,0.001634]
[1728527918783,0.22220461,60921.0,60920.0,0.165783]
[1728527919247,0.22220461,60921.0,60920.0,0.001634]
[1728527919705,0.17304165,60921.0,60920.0,0.001634]
[1728527919929,0.22221688,60921.0,60920.0,0.001634]
[1728527922831,0.22221688,60921.0,60920.0,0.165783]
[1728527923079,0.22221688,60921.0,60920.0,0.001634]
[1728527924279,0.17304165,60921.0,60920.0,0.001634]
[1728527925451,0.2468045,60921.0,60920.0,0.001634]
[1728527927354,0.17304165,60921.0,60920.0,0.001634]
[1728527927830,0.2468639,60921.0,60920.0,0.001634]
[1728527928077,0.2468639,60921.0,60920.0,0.243083]
[1728527928325,0.2468639,60921.0,60920.0,0.45042184]
[1728527928326,0.06143173,60921.0,60920.0,0.45042184]
[1728527928567,0.01220401,60921.0,60920.0,0.45042184]
[1728527929024,0.007,60921.0,60920.0,0.45042184]
[1728527929233,0.04922772,60925.0,60920.0,0.28627284]
[1728527929491,0.04922772,60925.0,60924.0,0.164138]
[1728527930915,0.07382225,60925.0,60924.0,0.164138]
[1728527931358,0.09835047,60926.0,60924.0,0.164138]
[1728527931799,0.16083764,60925.0,60924.0,0.165138]
[1728527932477,0.16083764,60925.0,60924.0,0.164138]
[1728527932918,0.16083764,60925.0,60924.0,0.165138]
[1728527933154,0.16083764,60925.0,60924.0,0.164138]
[1728527933381,0.34255226,60925.0,60924.0,0.165138]
[1728527934084,0.34255224,60925.0,60924.0,0.165138]
[1728527935713,0.16083764,60925.0,60924.0,0.165138]
[1728527936376,0.44101424,60925.0,60924.0,0.165138]
[1728527937035,0.34256146,60925.0,60924.0,0.165138]
[1728527937480,0.44101424,60925.0,60924.0,0.165138]
[1728527938828,0.44103686,60925.0,60924.0,0.165138]
[1728527939051,0.44621,60925.0,60924.0,0.165138]
[1728527942162,0.44623568,60925.0,60924.0,0.165138]
[1728527942386,0.44623568,60925.0,60924.0,0.256638]
[1728527943522,0.44623568,60925.0,60924.0,0.001]
[1728527946356,0.61037168,60925.0,60924.0,0.001]
[1728527946583,0.63498993,60925.0,60924.0,0.001]
[1728527946996,0.68629075,60925.0,60924.0,0.001]
[1728527947462,0.52215475,60925.0,60924.0,0.001]
[1728527947707,0.68629075,60925.0,60924.0,0.001]
[1728527949363,0.39906351,60925.0,60924.0,0.001]
[1728527949579,0.56319951,60925.0,60924.0,0.001]
[1728527950272,0.56319951,60925.0,60921.0,0.164146]
[1728527950515,0.09850137,60923.0,60921.0,0.164146]
[1728527950760,0.16083764,60922.0,60920.0,0.165783]
[1728527951006,0.07387703,60921.0,60920.0,0.165783]
[1728527951254,0.23471467,60921.0,60920.0,0.165783]
[1728527951480,0.23988765,60921.0,60920.0,0.165783]
[1728527951706,0.23988804,60921.0,60920.0,0.165783]
[1728527952366,0.23988804,60921.0,60920.0,0.18111133]
[1728527952581,0.23988804,60921.0,60920.0,0.168783]
[1728527953060,0.23988804,60921.0,60920.0,0.169783]
[1728527953282,0.23988804,60921.0,60920.0,0.18511123]
[1728527954675,0.16601062,60921.0,60920.0,0.18511123]
[1728527954908,0.21526385,60921.0,60920.0,0.18211123]
[1728527955132,0.00717298,60921.0,60920.0,0.47704154]
[1728527955360,0.00717298,60921.0,60920.0,0.50057004]
[1728527955577,0.01017298,60921.0,60920.0,0.62301518]
[1728527955803,0.005,60921.0,60920.0,0.62301518]
[1728527956040,0.04925323,60926.0,60925.0,0.164136]
[1728527956258,0.16083764,60926.0,60925.0,0.17946423]
[1728527956474,0.1660074,60926.0,60925.0,0.17946423]
[1728527956768,0.23988482,60926.0,60925.0,0.17946423]
[1728527957308,0.23988482,60926.0,60925.0,0.164136]
[1728527957539,0.23988482,60926.0,60925.0,0.17946842]
[1728527958234,0.24388482,60926.0,60925.0,0.17946842]
[1728527958447,0.24688482,60926.0,60925.0,0.17946842]
[1728527959092,0.24688482,60926.0,60925.0,0.1794666]
[1728527959534,0.24288482,60926.0,60925.0,0.1794666]
[1728527959763,0.23988482,60926.0,60925.0,0.165136]
[1728527959974,0.24188482,60926.0,60925.0,0.165136]
[1728527961080,0.24188482,60926.0,60925.0,0.164136]
[1728527961515,0.24188482,60926.0,60925.0,0.18619976]
[1728527961962,0.24488482,60926.0,60925.0,0.18619976]
[1728527963812,0.24488482,60926.0,60921.0,0.1]
[1728527963813,0.1710074,60926.0,60921.0,0.1]
[1728527964052,0.1710074,60926.0,60920.0,0.001634]
[1728527964053,0.164147,60921.0,60920.0,0.001634]
[1728527964288,0.60521453,60921.0,60920.0,0.001634]
[1728527964511,0.44625747,60921.0,60920.0,0.001634]
[1728527964743,0.16602758,60921.0,60920.0,0.001634]
[1728527964978,0.23988902,60921.0,60920.0,0.001634]
[1728527965196,0.23988902,60921.0,60920.0,0.245283]
[1728527965197,0.16602758,60921.0,60920.0,0.245283]
[1728527965638,0.16602758,60921.0,60920.0,0.249283]
[1728527966100,0.23989006,60921.0,60920.0,0.249283]
[1728527966367,0.16602758,60921.0,60920.0,0.249283]
[1728527966585,0.0544334,60921.0,60920.0,0.251283]
[1728527966813,0.00518994,60921.0,60920.0,0.351283]
[1728527967700,0.00518994,60921.0,60920.0,0.356283]
[1728527968353,0.0544334,60921.0,60920.0,0.356283]
[1728527972837,0.0544334,60921.0,60920.0,0.352283]
[1728527973066,0.0544334,60921.0,60920.0,0.350283]
[1728527973761,0.0544334,60921.0,60920.0,0.354283]
[1728527974425,0.00518994,60921.0,60920.0,0.356283]
[1728527974639,0.07386248,60922.0,60920.0,0.192134]
[1728527974854,0.07386248,60922.0,60921.0,0.29159214]
[1728527975072,0.09852752,60924.0,60922.0,0.005]
[1728527975290,0.09852752,60924.0,60923.0,0.164141]
[1728527977313,0.09952752,60924.0,60923.0,0.164141]
[1728527977525,0.28138009,60924.0,60923.0,0.164141]
[1728527977739,0.28338009,60924.0,60923.0,0.164141]
[1728527978392,0.003,60924.0,60923.0,0.164141]
[1728527978607,0.18484947,60924.0,60923.0,0.164141]
[1728527978827,0.28337699,60924.0,60923.0,0.164141]
[1728527982066,0.18484947,60924.0,60923.0,0.164141]
[1728527983417,0.18484947,60924.0,60923.0,0.19174052]
[1728527983649,0.003,60924.0,60923.0,0.19174052]
[1728527984116,0.00817743,60924.0,60923.0,0.19174052]
[1728527985206,0.08207049,60924.0,60923.0,0.19174052]
[1728527985619,0.00817743,60924.0,60923.0,0.19174052]
[1728527986976,0.08207123,60924.0,60923.0,0.19174052]
[1728527989449,0.08207064,60924.0,60923.0,0.19174052]
[1728527990754,0.08207064,60924.0,60923.0,0.18674052]
[1728527990969,0.08207064,60924.0,60923.0,0.19174052]
[1728527992480,0.08206994,60924.0,60923.0,0.19174052]
[1728527993146,0.24290758,60924.0,60923.0,0.02759952]
[1728527993383,0.24290758,60924.0,60921.0,0.169145]
[1728527993598,0.23473015,60923.0,60922.0,0.164143]
[1728527994080,0.23990705,60923.0,60922.0,0.164143]
[1728527994302,0.23990921,60923.0,60922.0,0.164143]
[1728527996505,0.24090921,60923.0,60922.0,0.164143]
[1728527999211,0.24090921,60923.0,60922.0,0.165777]
[1728527999444,0.08007157,60923.0,60922.0,0.262677]
[1728527999672,0.001,60923.0,60922.0,0.47776708]
[1728527999890,0.001,60923.0,60922.0,0.47776264]
[1728528000115,0.00616052,60923.0,60922.0,0.47776264]
[1728528000342,0.001,60923.0,60922.0,0.47776264]
[1728528000572,0.00516052,60923.0,60922.0,0.47776364]
[1728528000805,0.04926983,60925.0,60924.0,0.169138]
[1728528001046,0.07389467,60926.0,60925.0,0.164136]
[1728528001291,0.07389467,60926.0,60925.0,0.169136]
[1728528001523,0.04926569,60926.0,60925.0,0.169136]
[1728528002028,0.34686443,60929.0,60926.0,0.164133]
[1728528002029,0.07390239,60927.0,60926.0,0.164133]
[1728528002250,0.23474003,60927.0,60926.0,0.28657814]
[1728528002468,0.21010158,60927.0,60926.0,0.28657814]
[1728528002679,0.16083764,60927.0,60926.0,0.28657814]
[1728528003594,0.2100999,60927.0,60926.0,0.28957814]
[1728528004061,0.16083764,60927.0,60926.0,0.28957814]
[1728528004789,0.16083764,60927.0,60926.0,0.29057814]
[1728528005891,0.2100999,60927.0,60926.0,0.29057814]
[1728528006122,0.23474003,60927.0,60926.0,0.29057814]
[1728528006353,0.16083764,60927.0,60926.0,0.29057814]
[1728528006798,0.23474003,60927.0,60926.0,0.29057814]
[1728528007014,0.44117722,60927.0,60926.0,0.29057814]
[1728528007237,0.34264877,60927.0,60926.0,0.168133]
[1728528007460,0.16083764,60927.0,60926.0,0.168133]
[1728528007922,0.44117408,60927.0,60926.0,0.167133]
[1728528008639,0.16083764,60927.0,60926.0,0.164133]
[1728528008867,0.34264742,60927.0,60926.0,0.167133]
[1728528009083,0.16083764,60927.0,60926.0,0.167133]
[1728528009309,0.16083764,60927.0,60926.0,0.165133]
[1728528009556,0.16283764,60927.0,60926.0,0.165133]
[1728528009772,0.16083764,60927.0,60926.0,0.165133]
[1728528010232,0.16583764,60927.0,60926.0,0.165133]
[1728528010456,0.44615073,60927.0,60926.0,0.164133]
[1728528010707,0.45115073,60927.0,60926.0,0.164133]
[1728528011615,0.35264439,60927.0,60926.0,0.165767]
[1728528013683,0.47577731,60927.0,60926.0,0.001634]
[1728528014127,0.48096607,60927.0,60926.0,0.001634]
[1728528016445,0.48096607,60927.0,60926.0,0.165767]
[1728528016904,0.48096607,60927.0,60926.0,0.001634]
[1728528017134,0.64509607,60927.0,60926.0,0.001634]
[1728528017648,0.48096607,60927.0,60926.0,0.001634]
[1728528020319,0.64440829,60927.0,60926.0,0.001634]
[1728528020590,1.02995293,60927.0,60926.0,0.001634]
[1728528021085,0.85514618,60927.0,60926.0,0.001634]
[1728528021313,1.19633543,60927.0,60926.0,0.001634]
[1728528021545,1.20033543,60927.0,60926.0,0.001634]
[1728528021774,1.19633543,60927.0,60926.0,0.001634]
[1728528022229,1.19633543,60927.0,60926.0,0.002634]
[1728528022230,1.04303609,60927.0,60926.0,0.002634]
[1728528022453,1.03803609,60927.0,60926.0,0.002634]
[1728528022900,1.04903609,60927.0,60926.0,0.003634]
[1728528023549,0.90281311,60927.0,60926.0,0.003634]
[1728528024951,0.90481311,60927.0,60926.0,0.003634]
[1728528025177,0.90281311,60927.0,60926.0,0.003634]
[1728528025848,0.90264349,60927.0,60926.0,0.003634]
[1728528027446,0.78019835,60927.0,60926.0,0.003634]
[1728528029269,0.78019835,60927.0,60926.0,0.167767]
[1728528029270,0.42306835,60927.0,60926.0,0.167767]
[1728528029494,0.5706858,60927.0,60926.0,0.003634]
[1728528029719,0.5706858,60927.0,60926.0,0.167767]
[1728528029944,0.42306835,60927.0,60926.0,0.167767]
[1728528030420,0.49464037,60927.0,60926.0,0.167767]
[1728528030639,0.37163491,60927.0,60926.0,0.167767]
[1728528030869,0.26382034,60927.0,60926.0,0.167767]
[1728528031803,0.25863158,60927.0,60926.0,0.167767]
[1728528032254,0.18483764,60927.0,60926.0,0.167767]
[1728528032482,0.23403363,60927.0,60926.0,0.29021214]
[1728528032765,0.18483764,60927.0,60926.0,0.29021214]
[1728528033227,0.17383764,60927.0,60926.0,0.28921214]
[1728528033460,0.17383764,60927.0,60926.0,0.166767]
[1728528033691,0.18083764,60927.0,60926.0,0.167767]
[1728528034386,0.16783764,60927.0,60926.0,0.166767]
[1728528034822,0.17383764,60927.0,60926.0,0.166767]
[1728528035043,0.16683764,60927.0,60926.0,0.165767]
[1728528035293,0.16083764,60927.0,60926.0,0.165767]
[1728528035522,0.16183764,60927.0,60926.0,0.165767]
[1728528048040,0.16183764,60927.0,60926.0,0.165767]
[1728528059645,0.16183764,60927.0,60926.0,0.18109601]
[1728528061352,0.16183764,60927.0,60926.0,0.165767]
[1728528063002,0.001,60927.0,60926.0,0.18609948]
[1728528067951,0.001,60927.0,60926.0,0.170767]
[1728528068443,0.001,60927.0,60926.0,0.18609242]
[1728528075363,0.05020802,60927.0,60926.0,0.18609242]
[1728528075860,0.05020802,60927.0,60926.0,0.18609565]
[1728528076341,0.001,60927.0,60926.0,0.18609565]
[1728528079794,0.05027387,60927.0,60926.0,0.18609565]
[1728528080051,0.001,60927.0,60926.0,0.46449565]
[1728528081518,0.04925865,60933.0,60932.0,0.2835]
[1728528081750,0.04925865,60933.0,60932.0,0.91362379]
[1728528082704,0.07382138,60934.0,60933.0,0.264114]
[1728528082953,0.07382138,60934.0,60933.0,0.269114]
[1728528083895,0.07382138,60934.0,60933.0,0.271114]
[1728528085051,0.07382138,60934.0,60933.0,0.272114]
[1728528086256,0.07378954,60934.0,60933.0,0.272114]
[1728528086898,0.02456273,60934.0,60933.0,0.272114]
[1728528097686,0.02456273,60934.0,60933.0,0.28741286]
[1728528101498,0.02456273,60934.0,60933.0,0.409858]
[1728528102361,0.02456273,60934.0,60933.0,0.28741286]
[1728528102840,0.02456273,60934.0,60933.0,0.28904686]
[1728528103968,0.02456273,60934.0,60933.0,0.28905096]
[1728528104434,0.02456273,60934.0,60933.0,0.28905078]
[1728528108005,0.02456273,60934.0,60933.0,0.273748]
[1728528108226,0.02456273,60934.0,60933.0,0.28905713]
[1728528109093,0.02456273,60934.0,60933.0,0.28705713]
[1728528109314,0.02456273,60934.0,60933.0,0.28605713]
[1728528109571,0.02456273,60934.0,60933.0,0.28905713]
[1728528109765,0.02456273,60934.0,60933.0,0.29005713]
[1728528111554,0.02456273,60934.0,60933.0,0.29006147]
[1728528113039,0.02456273,60934.0,60933.0,0.29334335]
[1728528124050,0.02456273,60934.0,60933.0,0.29006147]
[1728528127869,0.02456273,60934.0,60933.0,0.274748]
[1728528128314,0.02456273,60934.0,60933.0,0.29007976]
[1728528130608,0.57164794,60934.0,60933.0,0.005634]
[1728528130843,0.34348601,60934.0,60933.0,0.005634]
[1728528131067,0.34348601,60934.0,60933.0,0.169748]
[1728528131285,0.34348601,60934.0,60933.0,0.29219314]
[1728528131504,0.44200782,60934.0,60933.0,0.169748]
[1728528134660,0.80575474,60934.0,60933.0,0.005634]
[1728528134872,0.68259701,60934.0,60933.0,0.005634]
[1728528135101,0.73391274,60934.0,60933.0,0.005634]
[1728528135569,0.73391274,60934.0,60933.0,0.001634]
[1728528135819,0.73991274,60934.0,60933.0,0.001634]
[1728528136050,0.73691274,60934.0,60933.0,0.001634]
[1728528136296,0.73391274,60934.0,60933.0,0.001634]
[1728528136779,0.73791274,60934.0,60933.0,0.001634]
[1728528137468,0.92171935,60934.0,60933.0,0.001634]
[1728528137684,0.88731938,60934.0,60933.0,0.001634]
[1728528138158,0.76487424,60934.0,60933.0,0.001634]
[1728528141498,0.71359701,60934.0,60933.0,0.001634]
[1728528143766,0.83656626,60934.0,60933.0,0.001634]
[1728528147564,0.71359701,60934.0,60933.0,0.001634]
[1728528148560,0.83656626,60934.0,60933.0,0.001634]
[1728528149725,0.71359701,60934.0,60933.0,0.001634]
[1728528151735,0.71325509,60934.0,60933.0,0.001634]
[1728528153675,0.83615425,60934.0,60933.0,0.001634]
[1728528157202,1.04972569,60934.0,60933.0,0.001634]
[1728528158135,0.88891908,60934.0,60933.0,0.001634]
[1728528158378,1.03441446,60934.0,60933.0,0.001634]
[1728528158609,0.88691908,60934.0,60933.0,0.001634]
[1728528158830,0.88891908,60934.0,60933.0,0.001634]
[1728528159534,0.76447394,60934.0,60933.0,0.001634]
[1728528161180,0.76442439,60934.0,60933.0,0.001634]
[1728528165761,0.58298549,60934.0,60933.0,0.001634]
[1728528166002,0.76445263,60934.0,60933.0,0.001634]
[1728528170219,0.68825263,60934.0,60933.0,0.001634]
[1728528170438,0.58945263,60934.0,60933.0,0.001634]
[1728528170659,0.58951623,60934.0,60933.0,0.001634]
[1728528173109,0.5895645,60934.0,60933.0,0.001634]
[1728528174494,0.73713348,60934.0,60933.0,0.001634]
[1728528175580,0.5895645,60934.0,60933.0,0.001634]
[1728528183748,0.58985722,60934.0,60933.0,0.001634]
[1728528188556,0.58986077,60934.0,60933.0,0.001634]
[1728528193458,0.58989146,60934.0,60933.0,0.001634]
[1728528198746,0.58992202,60934.0,60933.0,0.001634]
[1728528202961,0.58993376,60934.0,60933.0,0.001634]
[1728528203458,0.42582276,60934.0,60933.0,0.001634]
[1728528203686,0.42582276,60934.0,60933.0,0.179134]
[1728528203687,0.40282276,60934.0,60933.0,0.179134]
[1728528203942,0.71479522,60934.0,60933.0,0.179134]
[1728528205367,0.56693376,60934.0,60933.0,0.179134]
[1728528205606,0.40282276,60934.0,60933.0,0.343248]
[1728528205834,0.40282276,60934.0,60933.0,0.179134]
[1728528206285,0.56693376,60934.0,60933.0,0.179134]
[1728528207717,0.56686427,60934.0,60933.0,0.179134]
[1728528208134,0.40275327,60934.0,60933.0,0.343248]
[1728528210632,0.40275327,60934.0,60933.0,0.2017014]
[1728528212719,0.40275327,60934.0,60933.0,0.3658154]
[1728528215684,0.40275327,60934.0,60933.0,0.2017014]
[1728528216127,0.42575327,60934.0,60933.0,0.001634]
[1728528216340,0.69235598,60934.0,60933.0,0.001634]
[1728528216547,0.58986427,60934.0,60933.0,0.001634]
[1728528226567,0.40798549,60934.0,60933.0,0.001634]
[1728528226779,0.75611462,60934.0,60933.0,0.001634]
[1728528226982,0.58984399,60934.0,60933.0,0.001634]
[1728528231560,0.58982731,60934.0,60933.0,0.001634]
[1728528233105,0.589828,60934.0,60933.0,0.001634]
[1728528234174,0.58957974,60934.0,60933.0,0.001634]
[1728528236441,0.58958241,60934.0,60933.0,0.001634]
[1728528243806,0.56658241,60934.0,60933.0,0.001634]
[1728528254101,0.38473723,60934.0,60933.0,0.001634]
[1728528254326,0.56661815,60934.0,60933.0,0.001634]
[1728528261325,0.65851815,60934.0,60933.0,0.001634]
[1728528261591,0.68151815,60934.0,60933.0,0.001634]
[1728528263475,0.49963723,60934.0,60933.0,0.001634]
[1728528263710,0.68156468,60934.0,60933.0,0.001634]
[1728528264732,0.84786977,60934.0,60933.0,0.001634]
[1728528265218,0.68156468,60934.0,60933.0,0.001634]
[1728528267538,0.84783897,60934.0,60933.0,0.001634]
[1728528267766,0.68156468,60934.0,60933.0,0.001634]
[1728528268240,0.68149964,60934.0,60933.0,0.001634]
[1728528270078,0.72420633,60934.0,60933.0,0.001634]
[1728528270304,0.68149964,60934.0,60933.0,0.001634]
[1728528271470,0.84774895,60934.0,60933.0,0.001634]
[1728528273035,0.84770014,60934.0,60933.0,0.001634]
[1728528277828,0.84766553,60934.0,60933.0,0.001634]
[1728528281648,0.68144306,60934.0,60933.0,0.001634]
[1728528281869,0.84224967,60934.0,60933.0,0.001634]
[1728528283936,0.68144306,60934.0,60933.0,0.001634]
[1728528285732,0.58954306,60934.0,60933.0,0.001634]
[1728528287367,0.58953968,60934.0,60933.0,0.001634]
[1728528289493,0.40242868,60934.0,60933.0,0.263948]
[1728528289736,0.40242868,60934.0,60933.0,0.341848]
[1728528290441,0.40242868,60934.0,60933.0,0.177734]
[1728528290671,0.40242868,60934.0,60933.0,0.341848]
[1728528291666,0.35120983,60934.0,60933.0,0.341848]
[1728528292836,0.34720983,60934.0,60933.0,0.341848]
[1728528293339,0.34617039,60934.0,60933.0,0.341848]
[1728528293573,0.34917039,60934.0,60933.0,0.341848]
[1728528294038,0.34617039,60934.0,60933.0,0.341848]
[1728528294535,0.34917039,60934.0,60933.0,0.341848]
[1728528294768,0.40045512,60934.0,60933.0,0.341848]
[1728528297061,0.40043243,60934.0,60933.0,0.341848]
[1728528297522,0.3491477,60934.0,60933.0,0.341848]
[1728528297966,0.3491477,60934.0,60933.0,0.177734]
[1728528301536,0.47217037,60934.0,60933.0,0.177734]
[1728528304482,0.47217037,60934.0,60933.0,0.341848]
[1728528304727,0.47217037,60934.0,60933.0,0.177734]
[1728528304959,0.47217037,60934.0,60933.0,0.341848]
[1728528305195,0.04921533,60939.0,60938.0,0.2034]
[1728528305424,0.000817,60943.0,60942.0,0.27409]
[1728528305659,0.000817,60943.0,60942.0,0.56513514]